[Event "Cattolica Chess Festival 2022"]
[Site "Cattolica"]
[Date "2022.06.09"]
[Round "7.10"]
[White "Heinemann, Josefine"]
[Black "Bin-Suhayl, Ieysaa"]
[Result "1-0"]
[ECO "C07"]
[WhiteElo "2300"]
[BlackElo "2255"]
[Annotator "TA"]
[PlyCount "85"]
[EventDate "2022.06.04"]
[EventCountry "ITA"]
[SourceTitle "playchess.com"]
[Source "ChessBase"]
[SourceQuality "1"]
[TimeControl "5400+30"]

{[%evp 25,85,27,23,19,12,20,16,16,18,9,26,20,20,24,25,14,27,-7,-3,-9,38,0,4,-8,0,-12,37,38,38,0,-9,-6,52,49,42,64,125,35,201,194,205,215,217,68,120,121,122,123,214,226,411,358,292,201,29993,1925,29981,29982,29982,29983,29983,29984]} 1. e4 {[%emt 0:30:01]} e6 {[%emt 0:39:07]} 2. d4 {[%emt 0:00:09]} d5 {[%emt 0:00:09]} 3. Nd2 {[%emt 0:00:05]} c5 {[%emt 0:00:50]} 4. exd5 {[%emt 0:01:41]} Qxd5 {[%emt 0:00:18]} 5. Ngf3 {[%emt 0:00:10]} cxd4 {[%emt 0:00:09]} 6. Bc4 {[%emt 0:00:09]} Qd6 {[%emt 0:00:19]} 7. O-O {[%emt 0:00:23]} Nf6 {[%emt 0:00:23]} 8. Nb3 {[%emt 0:00:10]} Nc6 {[%emt 0:00:02]} 9. Nbxd4 {[%emt 0:01:02]} Nxd4 {[%emt 0:00:12]} 10. Nxd4 {[%emt 0:00:14]} a6 {[%emt 0:00:12]} 11. Re1 {[%emt 0:01:11]} Be7 {[%emt 0:00:28]} 12. c3 {[%emt 0:01:18]} O-O {[%emt 0:00:08]} 13. Qf3 {[%emt 0:03:19]} Qc7 {[%emt 0:00:08]} 14. Bb3 {[%emt 0:00:07] C07: French Tarrasch: 3...c5, 4 Ngf3 and 4 exd5 Qxd5.} Bd6 {[%emt 0:00:57]} 15. h3 {[%emt 0:01:05]} e5 {[%emt 0:00:25]} 16. Nc2 {[%emt 0:01:52] The position is equal.} e4 {[%emt 0:00:08]} 17. Qe2 {[%emt 0:00:09]} Qc5 {[%emt 0:00:17] [#] Prevents Bg5.} 18. Ne3 $146 {[%emt 0:03:30]} ({Predecessor:} 18. Nd4 Re8 19. Be3 Qe5 20. f4 exf3 21. Nxf3 Qg3 22. Bf2 Rxe2 23. Bxg3 Rxe1+ 24. Bxe1 {½-½ (63) Akopian,V (2654)-Vaisser,A (2540) Ohrid 2001}) 18... Qe5 {[%emt 0:06:41] ( -> ...Qh2+)} 19. Nf1 {[%emt 0:00:14] Against Qh2+} Bd7 {[%emt 0:01:59]} 20. Be3 {[%emt 0:02:11]} Bb5 {[%emt 0:06:00]} 21. c4 {[%emt 0:02:34]} Bc6 {[%emt 0:00:25]} 22. Rad1 {[%emt 0:04:13]} Qe7 {[%emt 0:02:35]} (22... Bb4 $11) 23. a3 {[%emt 0:03:09]} (23. Ng3 $5 {[%cal Rg3f5]} g6 24. Bd4 $11) 23... Nd7 {[%emt 0:05:47]} 24. Bd4 {[%emt 0:03:55]} Kh8 {[%emt 0:19:36]} 25. Ne3 {[%emt 0:04:39]} Be5 {[%emt 0:05:00]} (25... f5 $11) 26. Nd5 $14 {[%emt 0:05:26]} Bxd5 {[%emt 0:00:24]} 27. cxd5 {[%emt 0:00:28]} (27. Bxe5 $14 Nxe5 28. Rxd5 (28. cxd5 f5 $11)) 27... f5 $11 {[%emt 0:02:06]} 28. Qd2 {[%emt 0:05:06]} Nf6 {[%emt 0:02:30]} (28... Rad8 $11) 29. Bxe5 $14 {[%emt 0:02:48]} Qxe5 {[%emt 0:00:01]} 30. d6 {[%emt 0:00:10]} f4 {[%emt 0:07:25]} ({Black should play} 30... Rad8 $14) 31. d7 {[%emt 0:05:01]} (31. Qd4 $16 Qxd4 32. Rxd4) 31... h5 $2 {[%emt 0:00:00]} (31... Rfd8 $14) 32. Qd6 {[%emt 0:00:00]} Qxb2 {[%emt 0:00:00]} 33. Rb1 {[%emt 0:00:00]} Qc3 {[%emt 0:00:00]} 34. Qxf4 {[%emt 0:00:00]} (34. Rec1 $18 Qd3 35. Qxd3 (35. Qxf4 Nxd7 36. Qg5 Nf6 $14) 35... exd3 36. Be6) 34... Qc6 {[%emt 0:00:00]} (34... Nxd7 $14 35. Qxe4 Nf6) 35. Rec1 $16 {[%emt 0:00:00] 0x0.00166bcbf322dp-1022s more active pieces.} Qxd7 {[%emt 0:00:00] [#]} 36. Rc7 {[%emt 0:00:00]} Qd3 {[%emt 0:00:00]} (36... Nh7 $16) 37. Bc2 $18 {[%emt 0:00:00][%mdl 64] Skewer} Qxa3 {[%emt 0:00:00]} (37... Qe2) 38. Qg5 {[%emt 0:00:00][%csl Gc7][%cal Rg5g7]} Rg8 {[%emt 0:00:00]} 39. Rbxb7 $40 {[%emt 0:00:00][%cal Og5f6][%mdl 128] Threatening mate with Qxf6! White attacks with force.} Qf8 {[%emt 0:00:00] [#]} (39... Nh7 $18 40. Qxh5 Qc1+ 41. Bd1 Qg5 42. Qxg5 Nxg5) 40. Rf7 {[%emt 0:00:00]} (40. Bxe4 $142 $1 {[%mdl 512]} Nh7 41. Qxh5 Qxf2+ 42. Kxf2 Rgf8+ 43. Rf7 Rxf7+ 44. Rxf7 Kg8 45. Qg6 Kh8 46. Qxh7#) 40... Nh7 {[%emt 0:00:00]} 41. Qg6 {[%emt 0:00:00] White mates.} Qa3 {[%emt 0:00:47]} 42. Kh2 {[%emt 0:00:00]} Qc5 {[%emt 0:00:28]} 43. Bxe4 {[%emt 0:00:00] Weighted Error Value: White=0.21 (precise) /Black=0.62} 1-0

[Event "Cattolica Chess Festival 2022"]
[Site "Cattolica"]
[Date "2022.06.10"]
[Round "8.2"]
[White "Schmider, Niklas"]
[Black "Brunello, Sabino"]
[Result "1/2-1/2"]
[ECO "C81"]
[WhiteElo "2393"]
[BlackElo "2521"]
[Annotator "TA"]
[PlyCount "110"]
[EventDate "2022.06.04"]
[EventCountry "ITA"]
[SourceTitle "playchess.com"]
[Source "ChessBase"]
[SourceQuality "1"]
[TimeControl "5400+30"]

{[%evp 30,110,37,12,14,14,14,10,65,70,77,83,82,82,89,74,97,52,51,47,47,44,47,51,61,65,81,45,110,117,618,618,618,605,522,216,211,51,45,49,46,45,49,50,52,52,52,52,52,52,53,42,45,43,52,35,35,33,35,35,35,-12,-12,-17,-16,-13,0,0,0,0,0,0,0,0,0,0,0,0,0,0,0,0,0]} 1. e4 {[%emt 0:30:02]} e5 {[%emt 0:30:06]} 2. Nf3 {[%emt 0:00:39]} Nc6 {[%emt 0:00:07]} 3. Bb5 {[%emt 0:00:03][%cal Bf1b5,Bb5a4,Ba4b3,Bb3c4][%mdl 32]} a6 {[%emt 0:00:08]} 4. Ba4 {[%emt 0:00:06]} Nf6 {[%emt 0:00:32]} 5. O-O {[%emt 0:00:07]} Nxe4 {[%emt 0:00:15]} 6. d4 {[%emt 0:00:10]} b5 {[%emt 0:00:19]} 7. Bb3 {[%emt 0:00:05]} d5 {[%emt 0:00:04]} 8. dxe5 {[%emt 0:00:03]} Be6 {[%emt 0:00:05]} 9. Qe2 {[%emt 0:00:46]} Be7 {[%emt 0:10:36]} 10. Rd1 {[%emt 0:02:25]} O-O {[%emt 0:00:07]} 11. c4 {[%emt 0:00:07]} bxc4 {[%emt 0:00:12]} 12. Bxc4 {[%emt 0:00:05]} Bc5 {[%emt 0:00:17]} 13. Be3 {[%emt 0:01:14]} Bxe3 {[%emt 0:00:10]} 14. Qxe3 {[%emt 0:00:05]} Qb8 {[%emt 0:00:10]} 15. Bb3 {[%emt 0:00:12]} Na5 {[%emt 0:00:29]} 16. Nbd2 {[%emt 0:00:06]} Nxd2 {[%emt 0:11:56] C81: Open Ruy Lopez: Keres Variation (9 Qe2).} 17. Rxd2 {[%emt 0:01:46]} Nxb3 {[%emt 0:00:46]} 18. axb3 {[%emt 0:00:08]} c5 {[%emt 0:01:31]} (18... Rc8 $11) 19. Qxc5 $14 {[%emt 0:00:45]} Qxb3 {[%emt 0:01:07]} 20. Nd4 {[%emt 0:01:14] [#]} Qc4 $146 {[%emt 0:01:13]} ({Predecessor:} 20... Qb7 21. h3 Rfc8 22. Qd6 Qc7 23. Qxc7 Rxc7 24. f4 g6 25. g4 Bc8 26. f5 Rb8 {½-½ (41) Jurcik,M (2445)-Mazur,S (2425) Banska Stiavnica 2018}) 21. Qa3 {[%emt 0:01:53]} Qc8 {[%emt 0:22:33]} 22. Qd3 {[%emt 0:01:17]} f6 {[%emt 0:05:27]} 23. Re1 {[%emt 0:24:59] [#] aiming for exf6. White is much more active.} fxe5 {[%emt 0:02:18]} 24. Rxe5 {[%emt 0:00:31]} Bf7 {[%emt 0:00:24]} 25. Rc2 {[%emt 0:12:22] Prevents Qc1+.} (25. g3 {with more complications.} Bg6 26. Qb3 Qc1+ 27. Rd1) 25... Qb7 {[%emt 0:01:23]} 26. Rce2 {[%emt 0:04:13]} Rac8 {[%emt 0:03:11]} 27. h3 {[%emt 0:02:23]} Qb4 {[%emt 0:02:50]} 28. Qe3 {[%emt 0:01:23]} Rc4 {[%emt 0:05:28]} (28... Qc5 $14) 29. Nf5 $16 {[%emt 0:02:01] [#] Re7 is the strong threat.} d4 $2 {[%emt 0:00:11][%mdl 8192]} (29... Kh8 $16) 30. Qg5 $18 {[%emt 0:13:33][%csl Gf5][%cal Rg5g7]} g6 {[%emt 0:00:29]} 31. Nh6+ {[%emt 0:00:00]} Kg7 {[%emt 0:00:00]} 32. Ng4 {[%emt 0:00:00]} (32. Re7 $142 Rc5 33. R7e5) 32... Qd6 {[%emt 0:00:00]} 33. Re7 $2 {[%emt 0:00:00]} ({Don't do} 33. b3 $6 Rc6 $16) (33. Qh6+ $18 Kg8 34. R2e4 (34. Re7 d3 $11)) 33... d3 $1 $14 {[%emt 0:00:00]} 34. R2e6 {[%emt 0:00:00] Intending Qf6+ and mate.} Qf4 {[%emt 0:00:00]} 35. Qxf4 {[%emt 0:00:00] Chess con chili.} Rxf4 {[%emt 0:00:00]} 36. Rd6 {[%emt 0:00:00] Prevents Rd8.} ({But not} 36. Rxa6 Rd4 37. Ne3 d2 $17) 36... Re8 {[%emt 0:00:00]} 37. Rxe8 {[%emt 0:00:00]} Bxe8 {[%emt 0:00:00]} 38. Rxd3 {[%emt 0:00:00][%mdl 4096] Endgame KRB-KRN} h5 {[%emt 0:00:00]} 39. Ne3 {[%emt 0:00:00]} Rb4 {[%emt 0:00:00]} 40. Rd2 {[%emt 0:00:00]} Bf7 {[%emt 0:00:39]} 41. Kf1 {[%emt 0:00:00]} a5 {[%emt 0:00:38]} 42. Nd1 {[%emt 0:00:00]} Kf6 {[%emt 0:01:24]} 43. Ke1 {[%emt 0:00:00]} Ke5 {[%emt 0:00:57]} 44. Rd7 {[%emt 0:00:00]} Bd5 {[%emt 0:00:32]} 45. Ra7 {[%emt 0:03:04]} (45. f3 $14 {might be stronger.}) 45... Bxg2 $11 {[%emt 0:00:41] The position is equal.} 46. Rxa5+ {[%emt 0:00:14]} Ke6 {[%emt 0:03:12]} 47. Rg5 Bxh3 {[%emt 0:00:29]} 48. Rxg6+ Kf7 {[%emt 0:01:34]} 49. Rg5 {[%emt 0:03:33]} h4 {[%emt 0:00:30]} 50. Ne3 {[%emt 0:03:56]} Be6 {[%emt 0:00:00]} 51. Kf1 {[%emt 0:00:00]} h3 {[%emt 0:00:00]} 52. Kg1 {[%emt 0:00:04]} Rxb2 {[%emt 0:00:04]} 53. Ng4 {[%emt 0:00:41]} Bxg4 {[%emt 0:00:37]} 54. Rxg4 {[%emt 0:00:30]} h2+ {[%emt 0:00:30]} 55. Kxh2 {[%emt 0:00:30]} Rxf2+ {[%emt 0:00:30] Weighted Error Value: White=0.24 (precise) /Black=0.26 (precise)} 1/2-1/2

[Event "Cattolica Chess Festival 2022"]
[Site "Cattolica"]
[Date "2022.06.10"]
[Round "8.3"]
[White "Willow, Jonah B"]
[Black "Shahil Dey"]
[Result "0-1"]
[ECO "B42"]
[WhiteElo "2401"]
[BlackElo "2369"]
[Annotator "TA"]
[PlyCount "130"]
[EventDate "2022.06.04"]
[EventCountry "ITA"]
[SourceTitle "playchess.com"]
[Source "ChessBase"]
[SourceQuality "1"]
[TimeControl "5400+30"]

{[%evp 15,130,50,89,30,37,0,29,39,31,34,32,34,49,0,0,0,21,0,33,27,52,-4,40,43,53,7,107,58,58,0,0,0,0,0,20,13,8,0,1,3,33,32,109,103,183,30,40,0,0,-77,-59,-73,-66,-62,-20,-32,-30,-62,-41,-66,-69,-61,-69,-244,-250,-514,-496,-512,-505,-502,-489,-491,-491,-437,-372,-386,-389,-383,-376,-371,-375,-366,-362,-352,-351,-402,-380,-570,-547,-614,-583,-583,-586,-634,-635,-826,-819,-762,-512,-511,-420,-716,-706,-647,0,-619,-375,-552,-545,-666,-612,-6033,-6103,-5422,-5077,-29979,-5860]} 1. e4 {[%emt 0:31:57]} c5 {[%emt 0:30:06]} 2. Nf3 {[%emt 0:00:09]} e6 {[%emt 0:00:06]} 3. d4 {[%emt 0:00:09]} cxd4 {[%emt 0:00:06]} 4. Nxd4 {[%emt 0:00:04]} a6 {[%emt 0:00:08]} 5. Bd3 {[%emt 0:00:31]} Nf6 {[%emt 0:00:08]} 6. O-O {[%emt 0:00:17]} d6 {[%emt 0:00:04]} 7. c4 {[%emt 0:00:14]} Nbd7 {[%emt 0:00:11]} 8. Nc3 {[%emt 0:02:08]} Qc7 {[%emt 0:00:11] was the old line (8...b6).} 9. Qe2 {[%emt 0:06:13] B42: Sicilian: Kan Variation: 5 Bd3.} (9. f4 $16) 9... Ne5 $11 {[%emt 0:01:10]} 10. Kh1 {[%emt 0:03:37]} Be7 {[%emt 0:03:29]} 11. f4 {[%emt 0:02:24] White has an edge.} Nxd3 {[%emt 0:01:53]} 12. Qxd3 {[%emt 0:00:02]} O-O {[%emt 0:01:22]} 13. b3 {[%emt 0:02:31]} b6 {[%emt 0:02:28]} 14. Bb2 {[%emt 0:01:33]} (14. f5 $14) 14... Bb7 {[%emt 0:00:09]} 15. Rae1 {[%emt 0:02:27]} Rad8 {[%emt 0:00:47]} 16. f5 {[%emt 0:08:13] [#]} (16. Qg3 $5 {[%cal Rc3d5]}) 16... Qd7 $146 {[%emt 0:01:43]} (16... d5 17. cxd5 e5 18. Nf3 $16) (16... e5 $5 {[%cal Re5d4]} 17. Nf3 b5 $11) ({Predecessor:} 16... e5 17. Nc2 b5 18. Nd5 bxc4 19. bxc4 Bxd5 20. exd5 Rc8 21. Ne3 Nd7 22. f6 Bxf6 {0-1 (73) Popovic,M (1960)-Viczencz,P (2030) Banska Bystrica 2019}) 17. a4 {[%emt 0:09:41]} Rfe8 {[%emt 0:01:51]} 18. Qh3 {[%emt 0:03:21]} (18. fxe6 $14 fxe6 19. Qh3) 18... Bf8 {[%emt 0:01:04]} (18... e5 $5 {[%cal Re5d4]} 19. Nc2 b5 $11) 19. fxe6 {[%emt 0:04:40]} fxe6 {[%emt 0:00:07]} 20. Bc1 {[%emt 0:00:03]} (20. Ba3 $14 {should be considered.}) 20... Bc8 {[%emt 0:23:28]} (20... d5 $1 $11) 21. Bg5 {[%emt 0:01:31]} (21. Qg3 $16 {And now Rxf6 would win.} Be7 22. Bh6) 21... Be7 $14 {[%emt 0:00:12]} 22. Re3 {[%emt 0:05:29]} (22. b4 $14) 22... Rf8 $1 $11 {[%emt 0:01:10][%cal Of6e4]} 23. Ref3 {[%emt 0:00:40]} Rf7 {[%emt 0:01:23]} 24. b4 {[%emt 0:07:18]} Rdf8 {[%emt 0:05:25]} 25. b5 $1 {[%emt 0:00:34]} axb5 {[%emt 0:00:12]} 26. axb5 {[%emt 0:00:14]} (26. Ncxb5 Nxe4 27. Rxf7 Rxf7 28. Rxf7 Kxf7 29. Qf3+ Nf6 $17) 26... h6 $132 {[%emt 0:04:43][%mdl 2048] Black is fighting back} 27. Be3 {[%emt 0:02:40]} Bd8 {[%emt 0:02:34]} 28. Nc6 {[%emt 0:01:17] Threatens to win with e5.} Bc7 {[%emt 0:00:42]} (28... e5 $14) 29. Qh4 $1 $16 {[%emt 0:01:48]} Bd8 {[%emt 0:06:29] [#]} (29... Bb7 $16) 30. Nxd8 $2 {[%emt 0:02:56]} ({White should play} 30. e5 $1 $18 dxe5 31. Nxe5) 30... Qxd8 $11 {[%emt 0:00:06]} 31. Na4 {[%emt 0:00:00]} Bb7 $1 {[%emt 0:00:00]} 32. Bxb6 {[%emt 0:00:00]} (32. Nc3 $1 $11 {keeps the balance.}) 32... Qc8 $17 {[%emt 0:00:00]} 33. Nb2 {[%emt 0:00:00][%cal Oc4c5]} Bxe4 {[%emt 0:00:00]} 34. R3f2 {[%emt 0:00:00]} Qb7 {[%emt 0:00:00]} (34... Qa8 $5 {[%cal Rf6d7]}) 35. Be3 {[%emt 0:00:00]} Bf5 {[%emt 0:00:00] White must now prevent ...Ng4.} 36. Rf3 {[%emt 0:00:00]} Ng4 {[%emt 0:00:00]} 37. Bd4 {[%emt 0:00:00]} Qe4 {[%emt 0:00:00]} 38. Bg1 {[%emt 0:00:00]} Qe2 {[%emt 0:00:18] Black is more active.} 39. h3 $2 {[%emt 0:02:52] [#] Black continues to play with concentration.} ({Better is} 39. Nd1 $15) 39... Be4 $1 $19 {[%emt 0:01:11]} ({Less strong is} 39... Qxb2 40. hxg4 g5 41. Qh5 $16 (41. Qxh6 Rh7 $17)) 40. Re1 $2 {[%emt 0:00:41] [#]} (40. Qxg4 {was forced.} Rxf3 41. Rxf3 (41. gxf3 $2 {perishes.} Rxf3 42. Rxf3 Bxf3+ 43. Qxf3 Qxf3+ $19) 41... Rxf3 42. Nd1) 40... Qxf3 $1 {[%emt 0:00:06][%csl Ge4][%cal Rf3g2][%mdl 512]} 41. Qxg4 {[%emt 0:00:03]} Qxg4 {[%emt 0:01:14]} 42. hxg4 {[%emt 0:00:01]} Rf4 {[%emt 0:00:10]} 43. Nd1 {[%emt 0:00:38]} Rxg4 {[%emt 0:01:27]} 44. Ne3 {[%emt 0:00:08]} Rh4+ {[%emt 0:01:03]} 45. Bh2 {[%emt 0:00:01]} e5 {[%emt 0:02:35]} 46. Rd1 {[%emt 0:00:48]} Rh3 {[%emt 0:00:16]} 47. Re1 {[%emt 0:00:53]} Bb7 {[%emt 0:01:07]} 48. Kg1 {[%emt 0:00:41]} Rh4 {[%emt 0:00:01]} 49. Bg3 {[%emt 0:00:51]} Rd4 {[%emt 0:00:19]} 50. Ra1 {[%emt 0:00:37]} Ra8 {[%emt 0:00:16]} 51. Re1 {[%emt 0:00:47]} (51. Rxa8+ {was worth a try.} Bxa8 52. Be1) 51... Ra2 {[%emt 0:00:08]} 52. Bf2 {[%emt 0:01:01]} Rdd2 {[%emt 0:00:32]} 53. Rf1 {[%emt 0:00:30]} g6 {[%emt 0:00:53]} 54. b6 {[%emt 0:00:16]} Kg7 {[%emt 0:02:07]} 55. c5 {[%emt 0:00:44]} dxc5 {[%emt 0:00:51]} 56. Nc4 {[%emt 0:00:11]} Rd5 {[%emt 0:00:37]} 57. Bg3 {[%emt 0:00:15]} Kg8 {[%emt 0:00:44] aiming for ...Rd4.} 58. Rb1 {[%emt 0:02:14]} (58. Bf2 $142) 58... Rd3 {[%emt 0:00:50]} 59. Bf2 {[%emt 0:00:21]} Rd5 $2 {[%emt 0:01:20]} (59... Rd8 $19 60. g3 Rf8) 60. Re1 $2 {[%emt 0:00:43][%mdl 8192]} (60. Bg3 $11 Rd4 61. Ne3) 60... Ra6 {[%emt 0:02:15]} 61. Bg3 {[%emt 0:00:30]} (61. Re2 $142) 61... Rd4 {[%emt 0:00:26]} 62. Rc1 {[%emt 0:00:19]} Rg4 {[%emt 0:00:58]} 63. Bxe5 {[%emt 0:00:42]} Rxg2+ {[%emt 0:00:16]} 64. Kf1 {[%emt 0:00:01]} Raa2 {[%emt 0:00:31] ( -> ...Raf2+)} 65. Nd6 {[%emt 0:00:54]} Ba6+ {[%emt 0:00:04] Weighted Error Value: White=0.43/Black=0.20 (precise)} (65... Raf2+ $142 66. Ke1 Ba6 67. Nc4 Rf5 68. b7 Bxb7 69. Rc3 Rh5 70. Ne3 Rh1+ 71. Nf1 Ba6 72. Rf3 Re2+ 73. Kd1 Rxe5 74. Kc2 Rxf1 75. Rc3 g5 76. Kb3 h5 77. Ka4 Ra1+ 78. Kb3 g4 79. Rc2 h4 80. Rf2 h3 81. Rf4 g3 82. Rg4+ Kf7 83. Rf4+ Ke6 84. Rg4 h2 85. Rh4 h1=Q 86. Rxh1 Rxh1 87. Kc3 Rh2 88. Kb3 Re3+ 89. Ka4 Ra2#) 0-1

[Event "Cattolica Chess Festival 2022"]
[Site "Cattolica"]
[Date "2022.06.10"]
[Round "8.4"]
[White "Safarli, Eltaj"]
[Black "Padmini, Rout"]
[Result "1-0"]
[ECO "C24"]
[WhiteElo "2600"]
[BlackElo "2348"]
[Annotator "TA"]
[PlyCount "89"]
[EventDate "2022.06.04"]
[EventCountry "ITA"]
[SourceTitle "playchess.com"]
[Source "ChessBase"]
[SourceQuality "1"]
[TimeControl "5400+30"]

{[%evp 12,89,25,24,18,26,27,6,42,33,20,0,0,0,0,0,0,-15,-4,-4,-15,-11,-35,-39,-29,-27,-22,-31,-12,-11,-14,-19,-15,-16,-13,-15,-13,-26,-14,-8,0,-95,-100,-194,-13,-4,183,172,180,177,164,172,181,114,177,191,170,174,174,172,172,164,271,272,310,305,616,211,200,204,201,187,189,179,293,287,29974,12841,29986,29987]} 1. e4 {[%emt 0:32:01]} e5 {[%emt 0:30:10]} 2. Bc4 {[%emt 0:00:21]} Nf6 {[%emt 0:00:51]} 3. d3 {[%emt 0:00:06]} c6 {[%emt 0:02:12]} 4. Nf3 {[%emt 0:00:08]} d6 {[%emt 0:01:25]} 5. O-O {[%emt 0:00:37]} Be7 {[%emt 0:00:09]} 6. Re1 {[%emt 0:00:35]} O-O {[%emt 0:00:29]} 7. Bb3 {[%emt 0:00:33]} Bg4 {[%emt 0:08:48] C24: Bishop's Opening: 2...Nf6.} 8. Nbd2 {[%emt 0:03:25]} Nbd7 {[%emt 0:00:56]} 9. c3 {[%emt 0:00:08]} d5 {[%emt 0:06:18] The position is equal.} 10. h3 {[%emt 0:00:59]} Bh5 {[%emt 0:00:29]} 11. Qe2 {[%emt 0:04:41]} Bd6 {[%emt 0:01:50]} 12. Nf1 {[%emt 0:01:20] [#]} Re8 $146 {[%emt 0:02:28]} ({Predecessor:} 12... dxe4 13. dxe4 Nc5 14. Bc2 Qb6 15. Ng3 Bxf3 16. Qxf3 Ne6 17. Nf5 Bc7 18. Nxg7 Nxg7 19. Qxf6 {1-0 (42) Petraki,M (2024)-Barbageorgopoulou,D (1752) Eretria 2011}) 13. Ng3 {[%emt 0:03:08]} Bg6 {[%emt 0:00:17]} 14. Bc2 {[%emt 0:03:38]} Nh5 {[%emt 0:04:20]} 15. Nxh5 {[%emt 0:04:54]} Bxh5 {[%emt 0:02:10]} 16. g4 {[%emt 0:00:06]} Bg6 {[%emt 0:00:23]} 17. Qf1 {[%emt 0:03:04]} dxe4 {[%emt 0:04:59]} 18. dxe4 {[%emt 0:00:06]} Nc5 {[%emt 0:00:07]} 19. Bg5 {[%emt 0:04:10]} f6 {[%emt 0:02:40]} 20. Be3 {[%emt 0:00:38]} Ne6 {[%emt 0:00:32]} (20... Bxe4 $2 21. Bxe4 Nxe4 22. Qc4+ Kh8 23. Qxe4 $18) 21. Nh4 {[%emt 0:02:19]} Bf7 $1 {[%emt 0:00:11]} 22. Nf5 {[%emt 0:00:40]} Bf8 {[%emt 0:03:35]} 23. h4 {[%emt 0:02:02]} (23. Bb3 {keeps more tension.} a5 24. a4 g6 25. Nh6+) 23... Qc7 {[%emt 0:01:53]} 24. h5 {[%emt 0:06:00]} g6 {[%emt 0:09:27]} 25. hxg6 {[%emt 0:03:07]} hxg6 {[%emt 0:00:05]} 26. Nh4 {[%emt 0:00:31]} (26. Qg2 $1 $11) 26... Bc5 $1 $17 {[%emt 0:01:40]} 27. Bc1 {[%emt 0:04:23]} (27. Qg2 $17) 27... a5 $2 {[%emt 0:03:08]} (27... Kg7 $1 $19 {And now ...a5 would win.} 28. b4 Bb6) 28. Qh3 $1 $11 {[%emt 0:00:57]} Nf4 $2 {[%emt 0:02:32]} (28... a4 $11 {and Black is okay.}) 29. Bxf4 $18 {[%emt 0:01:04]} exf4 {[%emt 0:00:04]} 30. e5 $1 {[%emt 0:02:04]} Rxe5 {[%emt 0:10:41]} (30... Qb6 $2 31. Nxg6 Bxf2+ 32. Kh1 Bd5+ 33. Be4 Bxe4+ 34. Rxe4 $18) 31. Nxg6 {[%emt 0:06:41]} Bxg6 {[%emt 0:00:00]} 32. Bxg6 {[%emt 0:00:00] Threatens to win with Rxe5.} Qg7 {[%emt 0:00:00]} (32... Rd8 $16) 33. Rxe5 $1 {[%emt 0:00:00]} fxe5 {[%emt 0:00:00]} 34. Qh5 {[%emt 0:00:00]} Rd8 {[%emt 0:00:00] [#]} 35. Re1 $1 {[%emt 0:00:00][%cal Og6f7,Ba1e1,Be1h1,Bh1h7][%mdl 32] Strongly threatening Bf7+!} Bd6 {[%emt 0:00:00]} (35... Rd2 $2 36. Rxe5 Be7 37. Rf5 $18 (37. Qf5 Qf6 $16)) 36. Kg2 {[%emt 0:00:00]} Kf8 {[%emt 0:00:00] [#]} (36... Rf8 $142 37. Bc2 f3+ 38. Kf1 Rd8) 37. Rh1 $1 {[%emt 0:00:00]} f3+ {[%emt 0:00:00]} 38. Kxf3 {[%emt 0:00:00] aiming for Qf5+.} Qf6+ {[%emt 0:00:00]} (38... Ke7 39. Ke4 Qf6) 39. Qf5 $2 {[%emt 0:00:00]} (39. Ke2 Bc5 40. f4) 39... Qxf5+ {[%emt 0:00:00]} 40. gxf5 {[%emt 0:00:00] KRB-KRB} Ke7 {[%emt 0:00:00]} 41. Rh7+ {[%emt 0:00:00]} Kf6 {[%emt 0:00:00]} 42. Rxb7 {[%emt 0:00:00]} Bc5 {[%emt 0:00:00]} (42... Rb8 $142 43. Rf7+ Kg5) 43. Rc7 {[%emt 0:00:00]} Rd6 $2 {[%emt 0:00:00]} (43... Kg5 $18 44. Rxc6 Bf8) 44. Kg4 {[%emt 0:00:00][%csl Gg6][%cal Rc7f7]} e4 {[%emt 0:00:00]} 45. Kf4 {[%emt 0:00:00] Weighted Error Value: White=0.18 (very precise) /Black=0.69} 1-0